Cogmind - Beta 13 @@@ ROGUE MODE // 2024.07.15 @ 22:53:17 Player: Smudges0 Result: Self-destructed Performance ------------- Evolutions (1) 500 Regions Visited (2) 400 Robots Destroyed (8) 40 Value Destroyed (248) 248 Prototype IDs (0) 0 Alien Tech Used (0) 0 Bonus (0) 0 TOTAL SCORE: 1188 Bonus ------- None Cogmind --------- Core Integrity 400/400 Matter 244/300 Energy 236/250 System Corruption 0% Temperature Danger (424) Movement Walking (120) Location -9/Materials Parts ------- > --- POWER (1) -------- Ion Engine > --- PROPULSION (3) --- Aluminum Leg Aluminum Leg Aluminum Leg > --- UTILITY (3) ------ Medium Storage Unit Weight Redist. System > --- WEAPON (2) ------- Medium Laser Autogun > --- INVENTORY (10) --- Ion Engine Light Treads Light Treads Aluminum Leg Wheel Compact Wheel Small Laser Grenade Launcher Peak State ------------ > --- POWER ------------ Ion Engine > --- PROPULSION ------- Aluminum Leg Aluminum Leg Aluminum Leg > --- UTILITY ---------- Medium Storage Unit Weight Redist. System Light Armor Plating > --- WEAPON ----------- Medium Laser Medium Laser > --- INVENTORY -------- Ion Engine Light Treads Light Treads Aluminum Leg Wheel Compact Wheel Small Laser Autogun Grenade Launcher [Rating: 11] Favorites ----------- Power Ion Engine Engine Ion Engine Propulsion Aluminum Leg Leg Aluminum Leg Utility Light Armor Plating Device Weight Redist. System Storage Medium Storage Unit Protection Light Armor Plating Weapon Medium Laser Energy Gun Medium Laser Ballistic Gun Autogun Build | -11 -10 -9 ------- Run | Yrd Mat Mat Slots Evolved 2 | . . 2 Power . | . . . Propulsion 1 | . . 1 Utility 1 | . . 1 Weapon . | . . . Parts Attached 12 | 6 3 3 Power 1 | 1 . . Engine 1 | 1 . . Core . | . . . Reactor . | . . . Propulsion 4 | 2 1 1 Treads . | . . . Leg 4 | 2 1 1 Wheel . | . . . Hover . | . . . Flight . | . . . Utility 4 | 1 2 1 Device 1 | . . 1 Storage 2 | 1 1 . Processor . | . . . Hackware . | . . . Protection 1 | . 1 . Artifact . | . . . Weapon 3 | 2 . 1 Energy Gun 2 | 2 . . Energy Cannon . | . . . Ballistic Gun 1 | . . 1 Ballistic Cannon . | . . . Launcher . | . . . Special Weapon . | . . . Impact Weapon . | . . . Slashing Weapon . | . . . Piercing Weapon . | . . . Special Melee Weapon . | . . . Unidentified Prototypes . | . . . Parts Lost 2 | . . 2 Power . | . . . Propulsion . | . . . Utility 1 | . . 1 Weapon 1 | . . 1 Highest Loss Streak 2 | . . 2 To Critical Strikes . | . . . Average Slot Usage (%) 94 | . 98 87 Engine 12 | . 14 11 Leg 28 | . 28 28 Device 2 | . . 6 Storage 12 | . 14 11 Protection 11 | . 12 9 Energy Gun 25 | . 28 21 Naked Turns . | . . . Heaviest Build 22 | 14 22 22 Greatest Support 36 | 20 20 36 Greatest Overweight (x) 3 | 3 1 1 Average Overweight (x) . | . . . Largest Inventory Capacity 10 | 8 10 10 Average Capacity 9 | 7 9 10 Most Carried 10 | 6 9 10 Average Carried 7 | 3 8 8 Final Capacity 10 | 8 10 10 Final Carried 9 | 6 9 8 Class Distribution -------------------- 100% | Mutant Dominant Class ---------------- Mutant | -10/Materials Mutant | -9/Materials Resources | -11 -10 -9 ----------- Run | Yrd Mat Mat Matter Collected 288 | 210 53 25 Remotely . | . . . Salvage Created 293 | . 53 240 Parts 9 | . 1 8 Haulers Intercepted . | . . . Recyclers Shooed . | . . . Parts Field Recycled . | . . . Retrieved Matter . | . . . Parts Self-Destructed . | . . . Prevented . | . . . Kills | -11 -10 -9 ------- Run | Yrd Mat Mat Combat Hostiles Destroyed 8 | . 1 7 Guns 7 | . 1 6 Classes Destroyed 3 | . 1 2 Swarmer 3 | . . 3 Grunt 3 | . 1 2 Sentry 2 | . . 2 Best Kill Streak 5 | . 1 5 Combat Bots Only 5 | . 1 5 Max Kills in Single Turn 1 | . 1 1 Gunslinging . | . . . Exploded . | . . . Melee . | . . . Uniques/NPCs Destroyed . | . . . Combat | -11 -10 -9 -------- Run | Yrd Mat Mat Hostile Shots Fired 44 | . 9 35 Missed 4 | . 1 3 Damage Taken 503 | . 119 384 Core 25 | . 25 . Absorbed by Shields . | . . . Core Remaining (%) 95 | 100 90 . Volleys Fired 31 | . 6 25 Largest 2 | . 2 2 Hottest 100 | . 100 100 Shots Fired 62 | . 12 50 Gun 62 | . 12 50 Cannon . | . . . Launcher . | . . . Special . | . . . Kinetic 9 | . . 9 Thermal 53 | . 12 41 Explosive . | . . . Electromagnetic . | . . . Robot Hit Streak 9 | . 5 9 Robot Miss Streak 4 | . 1 4 Penetration Max . | . . . Secondary Targets . | . . . Shots Hit Robots 41 | . 9 32 Core Hits 13 | . 3 10 Critical Kills . | . . . Critical Parts Destroyed . | . . . Critical Strikes 1 | . . 1 Burn 1 | . . 1 Melee Attacks . | . . . Impact . | . . . Slashing . | . . . Piercing . | . . . Sneak Attacks . | . . . Combat Hostiles . | . . . Follow-up Attacks . | . . . Damage Inflicted 532 | . 115 417 Guns 529 | . 112 417 Cannons . | . . . Explosions . | . . . Melee . | . . . Ramming 3 | . 3 . Kinetic 63 | . . 63 Thermal 466 | . 112 354 Explosive . | . . . Electromagnetic . | . . . Impact . | . . . Slashing . | . . . Piercing . | . . . Highest Corruption . | . . . Average Corruption . | . . . Corruption Purged . | . . . Corruption Blocked . | . . . Overload Shots . | . . . Overflow Damage . | . . . Projectiles . | . . . Explosions . | . . . Melee . | . . . Knockbacks . | . . . Impact . | . . . Kinetic . | . . . Secondary . | . . . Self-Inflicted Damage . | . . . Shots . | . . . Rammed . | . . . Targets Rammed 1 | . 1 . Kicked 1 | . 1 . Crushed . | . . . Highest Temperature 437 | . 351 437 Average Temperature 207 | . 176 220 Received Heat Transfer 261 | . 69 192 Effects 11 | . . 11 Shutdowns 1 | . . 1 Energy Bleed 1 | . . 1 Interference 3 | . . 3 Damage (minor) 2 | . . 2 Damage (major) 4 | . . 4 Siege Activations . | . . . Robots Corrupted . | . . . Combat Hostiles . | . . . Parts Fried . | . . . Impact Corruptions . | . . . Robots Melted 1 | . . 1 Combat Hostiles 1 | . . 1 Parts Melted 5 | . 2 3 Heat Transferred 1443 | . 333 1110 Parts Sabotaged . | . . . Parts Stolen . | . . . Parts Stripped . | . . . Power Chain Reactions . | . . . Alert | -11 -10 -9 ------- Run | Yrd Mat Mat Peak Influence 254 | . 128 254 Initial 53 | . . 53 Average 83 | . 70 134 Maximum Alert Level 1 | . . 1 Low Security (%) 97 | 100 100 91 Level 1 2 | . . 8 Level 2 . | . . . Level 3 . | . . . Level 4 . | . . . Level 5 . | . . . High Security . | . . . Max Security . | . . . Squads Dispatched . | . . . Investigation . | . . . Extermination . | . . . Reinforcement . | . . . Assault . | . . . Garrison . | . . . Intercept . | . . . Searches Triggered . | . . . Construction Impeded . | . . . Haulers Reinforced . | . . . Active Scanning Responses . | . . . Cargo Convoy Interrupts . | . . . Stealth | -11 -10 -9 --------- Run | Yrd Mat Mat Distress Signals 2 | . . 2 Communications Jammed . | . . . Distress Signals . | . . . Times Spotted 16 | . 5 11 Peak Tracking Total 7 | . 2 7 Tactical Retreats 1 | . 1 . Traps | -11 -10 -9 ------- Run | Yrd Mat Mat Traps Triggered . | . . . Indirectly . | . . . Trap Hack Attempts . | . . . Triggered . | . . . Disarmed . | . . . Reprogrammed . | . . . Reused . | . . . Traps Extracted . | . . . Installed . | . . . Triggered . | . . . Machines | -11 -10 -9 ---------- Run | Yrd Mat Mat Machines Disabled . | . . . Max in Single Turn . | . . . Machines Repaired . | . . . Machines Dismantled . | . . . Machines Sabotaged . | . . . Overloaded Fab Kills . | . . . Hacking | -11 -10 -9 --------- Run | Yrd Mat Mat Machines Accessed 6 | . 5 1 Terminals 6 | . 5 1 Fabricators . | . . . Repair Stations . | . . . Recycling Units . | . . . Scanalyzers . | . . . Garrison Access . | . . . Total Hacks 18 | . 15 3 Successful 11 | . 9 2 Failed 7 | . 6 1 Catastrophic . | . . . Database Lockouts . | . . . Manual 16 | . 14 2 Terminals 18 | . 15 3 Fabricators . | . . . Repair Stations . | . . . Recycling Units . | . . . Scanalyzers . | . . . Garrison Access . | . . . Terminal Hacks 2 | . 1 1 Emergency Access Points 1 | . 1 . Zone Layout 1 | . . 1 Fabricator Hacks . | . . . Repair Station Hacks . | . . . Recycling Unit Hacks . | . . . Scanalyzer . | . . . Garrison Access Hacks . | . . . Unauthorized Hacks 9 | . 8 1 Terminals 9 | . 8 1 Assimilate 2 | . 2 . Botnet 5 | . 4 1 Operators 2 | . 2 . Fabricators . | . . . Repair Stations . | . . . Recycling Units . | . . . Scanalyzers . | . . . Garrison Access . | . . . Data Cores Recovered . | . . . Used . | . . . Hacking Detections 5 | . 4 1 Full Trace Events . | . . . Feedback Events . | . . . Feedback Blocked . | . . . Robot Schematics Acquired . | . . . Robots Built . | . . . Authchips . | . . . Time . | . . . Total Robot Build Rating . | . . . Part Schematics Acquired . | . . . Parts Built . | . . . Authchips . | . . . Time . | . . . Total Part Build Rating . | . . . Parts Repaired . | . . . Time . | . . . Parts Recycled . | . . . Recycled Matter . | . . . Retrieved Matter . | . . . Retrieved Components . | . . . Parts Scanalyzed . | . . . Part Schematics Acquired . | . . . Parts Damaged . | . . . Bothacking | -11 -10 -9 ------------ Run | Yrd Mat Mat Used RIF Installer . | . . . Robots Hacked . | . . . Non-combat . | . . . Combat . | . . . Robot Hacks Applied . | . . . Relay Couplers Released . | . . . Fabnet Peak Effective % . | . . . Robots Rewired . | . . . Allies Hacked . | . . . Hacks Repelled . | . . . Allies | -11 -10 -9 -------- Run | Yrd Mat Mat Total Allies . | . . . Largest Group . | . . . Highest-Rated Group . | . . . Highest-Rated Ally . | . . . Total Orders . | . . . Ally Attacks . | . . . Total Damage . | . . . Kills . | . . . Allies Corrupted . | . . . Allies Melted . | . . . Intel | -11 -10 -9 ------- Run | Yrd Mat Mat Robot Analysis Total . | . . . Derelict Logs Recovered . | . . . Drone Launches . | . . . Drone Recoveries . | . . . Exploration | -11 -10 -9 ------------- Run | Yrd Mat Mat Turns Passed 687 | 72 396 219 Spaces Moved 345 | 44 206 95 Core 7 | 7 . . Treads . | . . . Legs 338 | 37 206 95 Wheels . | . . . Hover . | . . . Flight . | . . . Fastest Speed 50 | 50 120 120 Average Speed 149 | 127 158 141 Slowest Speed 200 | 200 190 190 Overloaded Moves . | . . . Propulsion Burnouts . | . . . Robots Hopped . | . . . Cave-ins Triggered . | . . . Exploration Rate (%) 19 | 4 44 10 Regions Visited 2 Branch Regions . Pre-discovered Areas . | . . . Known Exits Taken . | . . . Unknown Exits Taken 2 | 1 1 . Scrap Searched . | . . . Spaces Dug . | . . . Terrain Destroyed . | . . . Melee . | . . . Projectile . | . . . AOE . | . . . Terrain Rammed . | . . . Walls Destroyed . | . . . Machines Disabled . | . . . Actions | -11 -10 -9 --------- Run | Yrd Mat Mat Total 451 | 57 263 131 Wait 54 | 2 45 7 Move 343 | 43 205 95 Hop . | . . . Pick Up 9 | 6 2 1 Fast Attach 8 | 6 1 1 Attach 2 | . . 2 Detach . | . . . Swap 2 | . 2 . Drop 1 | . 1 . Fire 31 | . 6 25 Melee . | . . . Ram . | . . . Kick 1 | . 1 . Crush . | . . . Escape Stasis . | . . . Rewire . | . . . Trap . | . . . Miscellaneous . | . . . Route ------- -11/Scrapyard -10/Materials (discovered 2 exits: *Mat / [*Min]) -9/Materials (discovered 1 exit: [*Sto]) History --------- Turn | Location | Event 20 | -11/Scrapyard | Discovered new exit (range 15) 73 | -11/Scrapyard | Entered Materials 265 | -10/Materials | Discovered new exit (range 7) 311 | -10/Materials | Build established: Mutant 464 | -10/Materials | Discovered new exit (range 4) 469 | -10/Materials | Entered another Materials area 469 | -9/Materials | Evolved 2 slots: Propulsion x1, Utility x1 580 | -9/Materials | Discovered new exit (range 14) 688 | -9/Materials | Self-destructed Last Messages --------------- 00674_ Flight Unit melted. 00674_ S-10 Pest destroyed. 00674_ R-06 Scavenger collects Lgt. Assault Rifle. 00675_ Overheating: Energy bleed (-59). 00675_ K-01 Serf collects debris. 00678_ Overheating: Ion Engine damaged (-12). 00678_ K-01 Serf collects debris. 00680_ Power failure, Ion Engine shutdown. 00680_ K-01 Serf collects debris. 00681_ Overheating: Med. Storage Unit damaged (-72). 00682_ K-01 Serf collects debris. 00686_ Overheating: Med. Laser damaged (-17). 00686_ Overheating: Aluminum Leg damaged (-36). 00686_ Overheating: Aluminum Leg damaged (-18). 00686_ Overheating: Aluminum Leg damaged (-17). 00686_ G-34 Mercenary destroyed. 00687_ Overheating: System interference. 00687_ Med. Laser temporarily disabled. 00688_ K-01 Serf collects debris. 00688_ R-06 Scavenger collects Heat Sink. Map ----- +----------------------------------------------------+ | #??????# #??????????????????????????????????? | | #??????# #??????????????????????????????????? | | ########### #??????????????????????????????????? | | #??????????????????????????????????? | | ########## #??????????????????????????????????? | | #????????# #??????????????????????????????????? | | ########### ##?????#######?????????????????????? | | # ####### #?????????????????????? | | "" # #?????????????????????? | | T" / #?????????????????????? | | !!! # #?????????????????????? | | !! # ####### #?????????????????????? | | ! #######?????## ##?????????????????????? | | #????????????# #??????????????????????? | | ##########????????????# #??????????????????????? | | ##????????????????????# #??????????????????????? | | #????????????????????# #??????????????????????? | | #????????????????????# #??????????????????????? | | #???????????????????## ##?????????????????????? | | #???????????????????# #?????????????????????? | | #???????????????????# ######## "?????? | | #???????????????????# < "?????? | | ##??????????????????# #########+????????????? | | #??????????????????# % #?????????????????????? | | ##????????????????#####%####### +?????????? | | ???????????????????# %@ + / #?????????? | | ???????????????????# rt #####???????????????? | | ???????????????????# w#???????????????????? | | ???????????????????# #???????????????????? | | ???????????????????# #???????????????????? | | ???????????????????# w #???????????????????? | | ???????????????????# #???????????????????? | | ???????????????????# k #???????????????????? | | ???????????????????########u##???????????????????? | | ??????????????????????????# #????????????????????? | | ??????????????????????????# #????????????????????? | | ??????????????????????????#k#????????????????????? | | ??????????????????????????# #????????????????????? | | ??????????????????????????# #????????????????????? | | ??????????????????????????# #????????????????????? | | ??????????????????????????# #????????????????????? | | ??????????????????????????# #????????????????????? | | ??????????????????????????? ?????????????????????? | | ??????????????????????????? ?????????????????????? | | ??????????????????????????? ?????????????????????? | | ??????????????????????????? ?????????????????????? | | ??????????????????????????? ?????????????????????? | | ??????????????????????????? ?????????????????????? | | ??????????????????????????? ?????????????????????? | | ?????????????????????????????????????????????????? | +----------------------------------------------------+ Best States ------------- Heat Dissipation 28 Energy Generation 10 Energy Capacity 250 Matter Stores 300 Matter Capacity 300 Sight Range 16 Terrain Scan Density 10 Additional Mass Support 6 Armor Coverage 150 Evasion (%) 55 Item Schematics ----------------- None Robot Schematics ------------------ None Fabricated ------------ Nothing Alien Tech Used ----------------- None Achievements -------------- None Challenges ------------ None Game ------ Seed LinkedStasisSheargun Manual? 0 Play Time 00:12:31 Cumulative 13.6 hours Start 2024.07.15 @ 22:42:30 End 2024.07.15 @ 22:53:17 Sessions 1 Manual Loads 0 Difficulty Rogue Special Mode None Game No. 9 Rogue 9 Adventurer 0 Explorer 0 Win Type - Total 0 Types 0/0/0/0/0/0/0/0/0 Lore% 7 Gallery% 18 Achievement% 17 Wizard Run 0 Options --------- Layout 0 ASCII 0 Keyboard 1 Movement Numpad Keybinds 0 Fullscreen 2 Font 18/SmallcapsGlow Map View 76x50 Zoom Use 0% Tactical HUD 1 Map Filters NONE Filters NONE Steam 1 RUN: 5a3f4a04-40a3-40b4-bb79-33f46091ccee